bitfinex/quotes_BTCUSD_20210402
["timestamp","ask_amount","ask_price","bid_price","bid_amount"]
[1617347763865,6.17534652,59626.0,59625.0,0.57515]
[1617347764064,6.47534652,59626.0,59625.0,0.57515]
[1617347765473,6.34034652,59626.0,59625.0,0.57515]
[1617347765675,6.47534652,59626.0,59625.0,0.57515]
[1617347766471,6.34034652,59626.0,59625.0,0.57515]
[1617347767473,6.09034652,59626.0,59625.0,0.57515]
[1617347767876,5.70034652,59626.0,59625.0,0.57515]
[1617347768115,5.75034652,59626.0,59625.0,0.57515]
[1617347768304,5.85034652,59626.0,59625.0,0.57515]
[1617347769706,5.55034652,59626.0,59625.0,0.57515]
[1617347771331,5.50034652,59626.0,59625.0,0.57515]
[1617347774259,5.38527652,59626.0,59625.0,0.57515]
[1617347774666,3.30527652,59626.0,59625.0,0.57515]
[1617347774861,3.81027652,59626.0,59625.0,0.57515]
[1617347775863,4.61027652,59626.0,59625.0,0.57515]
[1617347776083,4.76827652,59626.0,59625.0,0.57515]
[1617347776279,4.10327652,59626.0,59625.0,0.57515]
[1617347776882,5.51327652,59626.0,59625.0,0.57515]
[1617347777084,5.60269372,59626.0,59625.0,0.57515]
[1617347777280,5.84269372,59626.0,59625.0,0.57515]
[1617347778080,5.80327652,59626.0,59625.0,0.57515]
[1617347778275,5.56327652,59626.0,59625.0,0.57515]
[1617347779106,4.29327652,59626.0,59625.0,0.57515]
[1617347779505,4.10327652,59626.0,59625.0,0.57515]
[1617347779709,4.18269423,59626.0,59625.0,0.57515]
[1617347779904,4.77269423,59626.0,59625.0,0.57515]
[1617347780108,4.14269423,59626.0,59625.0,0.57515]
[1617347780511,4.10327652,59626.0,59625.0,0.57515]
[1617347780710,4.06827652,59626.0,59625.0,0.57515]
[1617347781111,4.11827652,59626.0,59625.0,0.57515]
[1617347781730,5.38827652,59626.0,59625.0,0.57515]
[1617347781931,5.77298652,59626.0,59625.0,0.57515]
[1617347782527,4.50298652,59626.0,59625.0,0.57515]
[1617347782930,4.16476652,59626.0,59625.0,0.57515]
[1617347783127,4.11827652,59626.0,59625.0,0.57515]
[1617347783957,4.25327652,59626.0,59625.0,0.57515]
[1617347785358,4.49327652,59626.0,59625.0,0.57515]
[1617347785760,5.25327652,59626.0,59625.0,0.57515]
[1617347786778,5.73327652,59626.0,59625.0,0.57515]
[1617347786981,5.25327652,59626.0,59625.0,0.57515]
[1617347787434,5.11827652,59626.0,59625.0,0.57515]
[1617347787638,4.11827652,59626.0,59625.0,0.57515]
[1617347787840,4.25327652,59626.0,59625.0,0.57515]
[1617347788039,3.34827652,59626.0,59625.0,0.57515]
[1617347788249,3.44457404,59626.0,59625.0,0.57515]
[1617347788645,1.85657404,59626.0,59625.0,0.57515]
[1617347788845,2.82580019,59626.0,59625.0,0.57515]
[1617347789042,2.05950267,59626.0,59625.0,0.57515]
[1617347789243,1.69495893,59626.0,59625.0,0.57515]
[1617347789443,1.63573278,59626.0,59625.0,0.57515]
[1617347789643,3.63027652,59626.0,59625.0,0.57515]
[1617347789846,3.86802087,59626.0,59625.0,0.57515]
[1617347790841,4.00302087,59626.0,59625.0,0.57515]
[1617347791244,4.20802087,59626.0,59625.0,0.57515]
[1617347791448,3.89347713,59626.0,59625.0,0.57515]
[1617347791644,5.34847713,59626.0,59625.0,0.57515]
[1617347791849,5.51247713,59626.0,59625.0,0.57515]
[1617347792050,5.87702087,59626.0,59625.0,0.57515]
[1617347792848,5.87702087,59626.0,59625.0,0.40734]
[1617347793045,5.87702087,59626.0,59625.0,0.40166335]
[1617347794465,4.55702087,59626.0,59625.0,0.40166335]
[1617347795663,5.66702087,59626.0,59625.0,0.40166335]
[1617347797684,4.55702087,59626.0,59625.0,0.40166335]
[1617347799703,5.27702087,59626.0,59625.0,0.40166335]
[1617347800502,6.00702087,59626.0,59625.0,0.23384935]
[1617347801304,5.27702087,59626.0,59625.0,0.23384935]
[1617347801508,6.00702087,59626.0,59625.0,0.23384935]
[1617347801703,5.27702087,59626.0,59625.0,0.23384935]
[1617347803455,6.00702087,59626.0,59625.0,0.22884935]
[1617347803864,5.27702087,59626.0,59625.0,0.22884935]
[1617347804257,4.42202087,59626.0,59625.0,0.22884935]
[1617347805268,4.55702087,59626.0,59625.0,0.22884935]
[1617347805466,5.35702087,59626.0,59625.0,0.22884935]
[1617347805866,4.55702087,59626.0,59625.0,0.22884935]
[1617347806868,4.31702087,59626.0,59625.0,0.22884935]
[1617347807070,4.55702087,59626.0,59625.0,0.22884935]
[1617347807483,5.53702087,59626.0,59625.0,0.22884935]
[1617347808381,4.55702087,59626.0,59625.0,0.22884935]
[1617347808583,5.13702087,59626.0,59625.0,0.22884935]
[1617347809385,5.37702087,59626.0,59625.0,0.22884935]
[1617347809790,5.37702087,59626.0,59625.0,9.35e-06]
[1617347809791,5.99658087,59626.0,59625.0,9.35e-06]
[1617347809989,5.99495287,59626.0,59614.0,0.02974718]
[1617347810218,0.79108059,59615.0,59614.0,0.03174718]
[1617347810415,4.25778859,59615.0,59614.0,0.03174718]
[1617347810620,5.03233233,59615.0,59614.0,0.03174718]
[1617347810815,5.81816511,59615.0,59614.0,0.03174718]
[1617347811212,5.24485983,59615.0,59614.0,0.03174718]
[1617347813030,5.2455176,59615.0,59614.0,0.03174718]
[1617347813632,5.03904645,59615.0,59614.0,0.03174718]
[1617347815457,5.03904645,59615.0,59614.0,0.02674718]
[1617347816061,5.03904645,59615.0,59578.0,0.3586967]
[1617347816062,19.37845282,59581.0,59578.0,0.3586967]
[1617347816266,19.34845282,59581.0,59580.0,1.474]
[1617347816466,19.34845282,59581.0,59580.0,1.526]
[1617347816665,19.34845282,59581.0,59580.0,2.19737]
[1617347816862,19.34845282,59581.0,59580.0,2.29737]
[1617347817537,19.34845282,59581.0,59580.0,2.56253973]
[1617347818334,19.34845282,59581.0,59580.0,2.40253973]
[1617347818539,19.34845282,59581.0,59580.0,1.95853973]
[1617347818734,19.34845282,59581.0,59580.0,1.85853973]
[1617347819334,19.34845282,59581.0,59580.0,1.74837]
[1617347820935,19.34845282,59581.0,59580.0,1.88498555]
[1617347821143,19.34845282,59581.0,59580.0,1.83998555]
[1617347821346,19.65845282,59581.0,59580.0,1.83998555]
[1617347821546,19.7721553,59581.0,59580.0,1.83998555]
[1617347821942,20.13669904,59581.0,59580.0,1.83998555]
[1617347822139,20.13669904,59581.0,59580.0,1.70337]
[1617347822537,20.02299656,59581.0,59580.0,1.70337]
[1617347823137,19.65845282,59581.0,59580.0,1.70337]
[1617347823339,20.02299656,59581.0,59580.0,1.83998555]
[1617347823537,19.32845282,59581.0,59580.0,1.83998555]
[1617347823943,19.44278914,59581.0,59580.0,1.83998555]
[1617347824142,19.80733288,59581.0,59580.0,1.83998555]
[1617347824340,20.11733288,59581.0,59580.0,1.70337]
[1617347824947,20.0036304,59581.0,59580.0,1.70337]
[1617347825543,20.11733288,59581.0,59580.0,1.70337]
[1617347825743,19.32908666,59581.0,59580.0,1.70337]
[1617347825970,19.32908666,59581.0,59556.0,0.06734397]
[1617347826169,19.32908666,59581.0,59545.0,0.33592]
[1617347826170,8.2744618,59550.0,59545.0,0.33592]
[1617347826379,8.2444618,59550.0,59549.0,0.78128166]
[1617347826578,8.60900554,59550.0,59549.0,1.01990838]
[1617347826765,8.2444618,59550.0,59549.0,1.02190838]
[1617347826971,8.60900554,59550.0,59549.0,1.27371738]
[1617347827165,8.2444618,59550.0,59549.0,1.77371738]
[1617347827365,8.24412613,59550.0,59549.0,1.77371738]
[1617347827768,8.60866987,59550.0,59549.0,2.44543738]
[1617347827968,8.60866987,59550.0,59549.0,2.12543738]
[1617347828168,8.24412613,59550.0,59549.0,2.12543738]
[1617347828364,8.24412613,59550.0,59549.0,2.27843738]
[1617347828600,8.24412613,59550.0,59549.0,2.67343738]
[1617347828797,8.24412613,59550.0,59549.0,2.72343738]
[1617347829007,8.24412613,59550.0,59549.0,2.82343738]
[1617347829201,8.24412613,59550.0,59549.0,2.58343738]
[1617347829398,8.23412613,59550.0,59549.0,2.43043738]
[1617347829598,8.59866987,59550.0,59549.0,2.33043738]
[1617347830198,8.23412613,59550.0,59549.0,2.57043738]
[1617347830796,8.23412613,59550.0,59549.0,3.17043738]
[1617347830997,8.23412613,59550.0,59549.0,3.18043738]
[1617347832219,8.23412613,59550.0,59549.0,3.33943738]
[1617347832422,8.23324545,59550.0,59549.0,3.57943738]
[1617347832685,8.23324545,59550.0,59549.0,3.42943738]
[1617347834684,8.23385745,59550.0,59549.0,3.18943738]
[1617347835285,8.23385745,59550.0,59549.0,3.42943738]
[1617347835892,8.22568446,59550.0,59549.0,3.42943738]
[1617347836098,8.02830147,59550.0,59549.0,3.66943738]
[1617347836296,8.02830147,59550.0,59549.0,3.77465833]
[1617347836297,7.75284536,59550.0,59549.0,3.77465833]
[1617347836488,7.75284536,59550.0,59549.0,3.6267237]
[1617347836694,7.44607823,59550.0,59549.0,3.7017237]
[1617347837090,7.44607823,59550.0,59549.0,3.6267237]
[1617347837291,7.14568593,59550.0,59549.0,3.9267237]
[1617347837694,6.85908471,59550.0,59549.0,3.9267237]
[1617347838292,6.85908471,59550.0,59549.0,3.8267237]
[1617347838493,6.83425166,59550.0,59549.0,3.5867237]
[1617347839504,6.83425166,59550.0,59549.0,3.5817237]
[1617347839699,6.83425166,59550.0,59549.0,3.6817237]
[1617347839900,6.79092226,59550.0,59549.0,3.6817237]
[1617347840301,6.79092226,59550.0,59549.0,4.1817237]
[1617347840502,6.73969067,59550.0,59549.0,4.1817237]
[1617347841099,6.73969067,59550.0,59549.0,4.58004125]
[1617347841499,6.73969067,59550.0,59549.0,4.1817237]
[1617347841715,6.73969067,59550.0,59549.0,4.0227237]
[1617347841912,6.73969067,59550.0,59549.0,3.5227237]
[1617347842313,6.73439067,59550.0,59549.0,3.5227237]
[1617347842512,6.73439067,59550.0,59549.0,3.2227237]
[1617347844014,6.84809315,59550.0,59549.0,2.9827237]
[1617347844266,6.84809315,59550.0,59549.0,2.4702237]
[1617347844463,6.84809315,59550.0,59549.0,2.36500275]
[1617347844862,6.73439067,59550.0,59549.0,2.36500275]
[1617347845059,6.73439067,59550.0,59549.0,2.60500275]
[1617347845661,6.73439067,59550.0,59549.0,3.10500275]
[1617347846259,6.73439067,59550.0,59549.0,2.85500275]
[1617347847613,6.72979482,59550.0,59549.0,2.85500275]
[1617347849319,6.72979482,59550.0,59549.0,3.10500275]
[1617347850321,6.72979482,59550.0,59549.0,2.86500275]
[1617347850519,0.000612,59550.0,59549.0,2.86500275]
[1617347850722,0.000612,59550.0,59549.0,3.60687599]
[1617347851124,0.000612,59550.0,59549.0,3.84687599]
[1617347852326,0.000612,59550.0,59549.0,3.59687599]
[1617347853740,0.000612,59550.0,59549.0,3.02309433]
[1617347854127,0.000612,59550.0,59549.0,2.66792909]
[1617347854325,0.000612,59550.0,59549.0,2.71792909]
[1617347855345,0.000612,59550.0,59549.0,2.66792909]
[1617347859772,0.000612,59550.0,59549.0,3.12792909]
[1617347860595,0.000612,59550.0,59549.0,3.29392909]
[1617347862003,0.000612,59550.0,59549.0,2.79392909]
[1617347862207,0.125917,59563.0,59549.0,3.09392909]
[1617347862419,0.05,59568.0,59562.0,0.03]
[1617347862732,0.125891,59582.0,59569.0,0.10302]
[1617347862922,0.00194968,59587.0,59576.0,0.002]
[1617347862923,0.08393464,59587.0,59576.0,0.002]
[1617347863117,0.08393464,59587.0,59586.0,0.12035046]
[1617347863323,0.08391804,59597.0,59596.0,0.11404671]
[1617347863517,1.08391804,59597.0,59596.0,0.55174671]
[1617347863711,1.47977504,59597.0,59596.0,1.22546671]
[1617347863914,1.93977504,59597.0,59596.0,1.45546671]
[1617347864114,1.93977504,59597.0,59596.0,1.95546671]
[1617347864713,0.25977504,59597.0,59596.0,1.95546671]
[1617347864916,0.25977504,59597.0,59596.0,2.34217471]
[1617347865112,0.25977504,59597.0,59596.0,2.84217471]
[1617347865741,0.05,59597.0,59596.0,2.84217471]
[1617347866141,0.05,59597.0,59596.0,2.87217471]
[1617347866540,0.05,59597.0,59596.0,2.84217471]
[1617347866744,0.45,59597.0,59596.0,2.84217471]
[1617347867748,0.05,59597.0,59596.0,2.84217471]
[1617347868965,0.05,59597.0,59596.0,2.87217471]
[1617347869364,0.05,59597.0,59596.0,2.84217471]
[1617347869963,0.05,59600.0,59596.0,2.84217471]
[1617347870164,0.33,59597.0,59596.0,1.95546671]
[1617347870365,0.05,59597.0,59596.0,2.34217471]
[1617347871183,0.05,59597.0,59596.0,2.84217471]
[1617347872186,0.05,59597.0,59596.0,2.87217471]
[1617347872386,0.64414015,59597.0,59596.0,2.87217471]
[1617347873221,0.64414015,59597.0,59596.0,2.84217471]
[1617347874220,0.64414015,59597.0,59596.0,2.87217471]
[1617347875018,0.64414015,59597.0,59596.0,3.03917471]
[1617347876041,0.64470876,59597.0,59596.0,3.03917471]
[1617347880187,0.59470876,59597.0,59596.0,3.13917471]
[1617347880390,0.59470876,59597.0,59596.0,2.87217471]
[1617347880991,0.59449876,59597.0,59596.0,2.87217471]
[1617347881597,0.59449876,59597.0,59596.0,2.84217471]
[1617347882403,0.59449876,59597.0,59596.0,2.728128]
[1617347882999,0.59449876,59597.0,59596.0,1.728128]
[1617347883201,0.64449876,59597.0,59596.0,1.790428]
[1617347883401,0.69449876,59597.0,59596.0,1.790428]
[1617347883607,0.64449876,59597.0,59596.0,1.290428]
[1617347884224,0.64449876,59597.0,59596.0,1.790428]
[1617347884620,0.59449876,59597.0,59596.0,1.790428]
[1617347884821,0.59449876,59597.0,59596.0,1.820428]
[1617347886641,0.59449876,59597.0,59596.0,2.320428]
[1617347887045,0.64449876,59597.0,59596.0,2.290428]
[1617347887642,0.64449876,59597.0,59596.0,2.542117]
[1617347887842,0.69449876,59597.0,59596.0,2.542117]
[1617347888045,0.69449876,59597.0,59596.0,2.290428]
[1617347888644,1.69449876,59597.0,59596.0,2.290428]
[1617347888843,0.69449876,59597.0,59596.0,2.290428]
[1617347889674,0.69449876,59597.0,59596.0,1.790428]
[1617347890074,0.64449876,59597.0,59596.0,1.790428]
[1617347890276,0.59449876,59597.0,59596.0,1.790428]
[1617347891081,0.59449876,59597.0,59596.0,1.818428]
[1617347891281,0.59449876,59597.0,59596.0,1.81934599]
[1617347891485,0.59449876,59597.0,59596.0,1.78934599]
[1617347892098,0.59449876,59597.0,59596.0,1.94492392]
[1617347892308,0.59449876,59597.0,59596.0,2.19660992]
[1617347892500,0.59449876,59597.0,59596.0,2.42660992]
[1617347892937,0.59449876,59597.0,59596.0,2.45660992]
[1617347893740,0.59449876,59597.0,59596.0,2.95660992]
[1617347893942,0.59449876,59597.0,59596.0,3.05660992]
[1617347894544,0.59449876,59597.0,59596.0,3.22360992]
[1617347895145,0.59449876,59597.0,59596.0,2.99360992]
[1617347895347,0.57949876,59597.0,59596.0,3.12360992]
[1617347895747,0.57949876,59597.0,59596.0,2.89360992]
[1617347898751,0.57949876,59597.0,59596.0,2.73803199]
[1617347899152,0.62949876,59597.0,59596.0,2.73803199]
[1617347900178,0.62949876,59597.0,59596.0,2.96803199]
[1617347900577,0.62949876,59597.0,59596.0,3.0584338]
[1617347900778,0.62949876,59597.0,59596.0,2.8914338]
[1617347900978,0.62949876,59597.0,59596.0,2.6614338]
[1617347901177,0.57949876,59597.0,59596.0,2.8914338]
[1617347901379,0.57949876,59597.0,59596.0,2.6614338]
[1617347902811,0.57949876,59597.0,59596.0,2.6314338]
[1617347903209,0.62949876,59597.0,59596.0,2.6314338]
[1617347903410,0.57949876,59597.0,59596.0,2.6314338]
[1617347903806,0.57949876,59597.0,59596.0,2.6614338]
[1617347904213,0.57949876,59597.0,59596.0,2.4097478]
[1617347904407,0.57949876,59597.0,59596.0,2.3797478]
[1617347904610,0.57949876,59597.0,59596.0,2.28934599]
[1617347905031,0.62949876,59597.0,59596.0,2.28934599]
[1617347905232,0.67949876,59597.0,59596.0,2.05934599]
[1617347906428,0.67949876,59597.0,59596.0,1.55934599]
[1617347906630,0.68047308,59597.0,59596.0,1.17263799]
[1617347907031,0.67949876,59597.0,59596.0,1.17263799]
[1617347909173,0.62949876,59597.0,59596.0,1.17263799]
[1617347909574,0.57949876,59597.0,59596.0,1.34763799]
[1617347909775,0.57949876,59597.0,59596.0,1.73434599]
[1617347910409,0.57949876,59597.0,59596.0,1.76434599]
[1617347910802,0.56449876,59597.0,59596.0,1.76434599]
[1617347911709,0.56449876,59597.0,59596.0,2.01603899]
[1617347912907,0.56449876,59597.0,59596.0,2.51603899]
[1617347913712,0.56449876,59597.0,59596.0,2.48603899]
[1617347915111,0.56449876,59597.0,59596.0,2.51603899]
[1617347915741,0.56449876,59597.0,59596.0,2.48603899]
[1617347915947,0.56449876,59597.0,59596.0,2.23434599]
[1617347917144,0.56449876,59597.0,59596.0,2.26434599]
[1617347919560,0.56449876,59597.0,59596.0,2.23434599]
[1617347919759,0.56449876,59597.0,59596.0,2.48603299]
[1617347920791,0.56449876,59597.0,59596.0,2.23434599]
[1617347922598,1.66449876,59597.0,59596.0,2.23434599]
[1617347922821,2.05120676,59597.0,59596.0,1.67263799]
[1617347923017,2.05120676,59597.0,59596.0,1.17263799]
[1617347923238,1.16490924,59597.0,59596.0,1.17263799]
[1617347923424,1.35990924,59597.0,59596.0,1.17263799]
[1617347924022,2.35990924,59597.0,59596.0,1.17263799]
[1617347924225,2.49490924,59597.0,59596.0,1.17263799]
[1617347924435,2.82490924,59597.0,59596.0,0.67263799]
[1617347924627,2.81490924,59597.0,59596.0,0.67263799]
[1617347924828,3.0054263,59597.0,59596.0,0.67263799]
[1617347925030,2.40088256,59597.0,59596.0,0.67263799]
[1617347925228,2.39990924,59597.0,59596.0,0.67263799]
[1617347925623,1.39990924,59597.0,59596.0,0.67263799]
[1617347926036,1.76445298,59597.0,59596.0,0.67263799]
[1617347926236,1.39990924,59597.0,59596.0,0.67263799]
[1617347927238,1.15490924,59597.0,59596.0,0.67263799]
[1617347927838,2.15490924,59597.0,59596.0,0.67263799]
[1617347928045,2.28990924,59597.0,59596.0,0.67263799]
[1617347928239,3.11490924,59597.0,59596.0,0.67263799]
[1617347928461,3.4804263,59597.0,59596.0,0.67263799]
[1617347928663,2.60088256,59597.0,59596.0,0.67263799]
[1617347929064,2.46588256,59597.0,59596.0,0.67263799]
[1617347929867,2.8304263,59597.0,59596.0,0.67263799]
[1617347930067,3.44445298,59597.0,59596.0,0.67263799]
[1617347930268,3.46391076,59597.0,59596.0,0.67263799]
[1617347930664,3.62291076,59597.0,59596.0,0.67263799]
[1617347930867,3.12345298,59597.0,59596.0,0.67263799]
[1617347931285,1.75890924,59597.0,59596.0,0.67263799]
[1617347931489,1.62390924,59597.0,59596.0,0.67263799]
[1617347932286,1.31390924,59597.0,59596.0,0.67263799]
[1617347932490,1.41390924,59597.0,59596.0,0.67263799]
[1617347932686,1.74959924,59597.0,59596.0,0.67263799]
[1617347932889,2.88459924,59597.0,59596.0,0.67263799]
[1617347933091,3.19459924,59597.0,59596.0,0.67263799]
[1617347933294,3.55914298,59597.0,59596.0,0.67263799]
[1617347934109,4.62914298,59597.0,59596.0,0.67263799]
[1617347934313,4.72553298,59597.0,59596.0,0.67263799]
[1617347935110,4.96553298,59597.0,59596.0,0.67263799]
[1617347935313,4.96650519,59597.0,59596.0,0.67263799]
[1617347935911,6.98650519,59597.0,59596.0,0.50478053]
[1617347936110,4.96553298,59597.0,59596.0,0.50478053]
[1617347936364,6.54553298,59597.0,59596.0,0.33692307]
[1617347936565,5.22150578,59597.0,59596.0,0.33692307]
[1617347936760,4.83053298,59597.0,59596.0,0.33692307]
[1617347937160,2.76053298,59597.0,59596.0,0.33692307]
[1617347937363,2.90053298,59597.0,59596.0,0.33692307]
[1617347937569,2.40241334,59597.0,59596.0,0.16906807]
[1617347937854,1.95514298,59597.0,59596.0,0.16906807]
[1617347938053,2.49059924,59597.0,59596.0,0.16906807]
[1617347938267,3.74831298,59597.0,59596.0,0.16906807]
[1617347938460,3.70928577,59597.0,59596.0,0.16906807]
[1617347938657,2.90731298,59597.0,59596.0,0.16906807]
[1617347939466,2.00731298,59597.0,59596.0,0.16906807]
[1617347939671,2.97514298,59597.0,59596.0,0.00291799]
[1617347939871,2.12,59596.0,59584.0,0.03]
[1617347940071,0.002,59593.0,59583.0,0.0044]
[1617347940271,0.10370248,59589.0,59584.0,0.67332]
[1617347940469,0.15370248,59589.0,59584.0,0.67332]
[1617347940670,0.05,59589.0,59584.0,0.67332]
[1617347940867,0.0143,59589.0,59584.0,0.67332]
[1617347941068,0.225887,59590.0,59584.0,0.67332]
[1617347941272,0.125887,59590.0,59584.0,0.67332]
[1617347941491,0.125887,59590.0,59585.0,0.16]
[1617347941689,0.125887,59590.0,59585.0,0.162]
[1617347941894,0.22631352,59589.0,59585.0,0.83332]
[1617347942095,0.380016,59589.0,59585.0,0.83332]
[1617347942491,0.154,59587.0,59585.0,0.83332]
[1617347942689,0.204,59587.0,59585.0,0.67332]
[1617347942890,0.10370248,59586.0,59585.0,0.67332]
[1617347943091,0.15370248,59586.0,59585.0,0.67332]
[1617347943291,0.05,59586.0,59585.0,0.67332]
[1617347943695,0.204,59587.0,59585.0,0.67332]
[1617347943888,0.15370248,59587.0,59585.0,0.67332]
[1617347944326,0.05,59587.0,59585.0,0.67332]
[1617347944725,0.301797,59588.0,59585.0,0.67332]
[1617347945125,0.10370248,59587.0,59585.0,0.67332]
[1617347945526,0.05,59586.0,59585.0,0.67332]
[1617347945928,0.301797,59588.0,59585.0,0.67332]
[1617347946935,0.10370248,59587.0,59585.0,0.67332]
[1617347947333,0.95,59586.0,59585.0,0.67332]
[1617347948334,0.21,59586.0,59585.0,0.67332]
[1617347948535,0.301797,59588.0,59585.0,0.67332]
[1617347948735,0.10370248,59586.0,59585.0,0.67332]
[1617347948937,0.05,59586.0,59585.0,0.67332]
[1617347949135,0.10370248,59586.0,59585.0,0.67332]
[1617347949368,0.301797,59588.0,59585.0,0.67332]
[1617347949564,0.05,59586.0,59585.0,0.67332]
[1617347949760,0.301797,59588.0,59585.0,0.67332]
[1617347950361,0.386708,59587.0,59585.0,0.67332]
[1617347950561,0.05,59588.0,59585.0,0.67332]
[1617347951167,0.175887,59590.0,59585.0,0.67332]
[1617347951763,0.251802,59586.0,59585.0,0.67332]
[1617347953990,0.075887,59590.0,59585.0,0.67332]
[1617347955790,0.327666,59590.0,59585.0,0.67332]
[1617347955991,0.10370248,59589.0,59585.0,0.67332]
[1617347956192,0.075887,59590.0,59585.0,0.67332]
[1617347956593,0.05,59588.0,59585.0,0.67332]
[1617347957803,0.301787,59588.0,59585.0,0.67332]
[1617347958805,0.00066643,59587.0,59585.0,0.67332]
[1617347963662,0.00097515,59586.0,59585.0,0.67332]
[1617347964858,0.05097515,59586.0,59585.0,0.67332]
[1617347965280,0.00097515,59586.0,59585.0,0.67332]
[1617347967283,0.00097515,59586.0,59585.0,1.060028]
[1617347967928,0.23967763,59586.0,59585.0,0.67332]
[1617347968127,0.28967763,59586.0,59585.0,0.67332]
[1617347968329,2.51422137,59586.0,59585.0,0.50746]
[1617347968526,3.31592937,59586.0,59585.0,0.50746]
[1617347968725,3.31592937,59586.0,59585.0,0.3396]
[1617347968927,1.09138563,59586.0,59585.0,0.171737]
[1617347969128,3.29495422,59586.0,59585.0,0.171737]
[1617347969327,3.13561995,59586.0,59585.0,0.003874]
[1617347969534,1.09107621,59586.0,59585.0,0.003874]
[1617347969728,1.98561995,59586.0,59585.0,0.003874]
[1617347969930,3.98561995,59586.0,59585.0,0.00352713]
[1617347970327,2.22561995,59586.0,59585.0,0.00352713]
[1617347971136,1.09107621,59586.0,59585.0,0.00352713]
[1617347971341,0.85107621,59586.0,59585.0,0.00352713]
[1617347971742,0.72618338,59586.0,59585.0,0.00352713]
[1617347971941,0.36163964,59586.0,59585.0,0.00352713]
[1617347972448,0.05066573,59586.0,59585.0,0.00352713]
[1617347972640,0.00066573,59586.0,59585.0,0.00352713]
[1617347973460,0.10436821,59586.0,59585.0,0.00352713]
[1617347973860,0.15436821,59586.0,59585.0,0.00352713]
[1617347974462,0.05066573,59586.0,59585.0,0.00352713]
[1617347974660,0.18066573,59586.0,59585.0,0.00352713]
[1617347975261,0.00066573,59586.0,59585.0,0.00352713]
[1617347975886,0.10436821,59586.0,59585.0,0.00352713]
[1617347976085,0.15436821,59586.0,59585.0,0.00352713]
[1617347977290,0.15534186,59586.0,59585.0,0.00352713]
[1617347977486,0.28936821,59586.0,59585.0,0.00352713]
[1617347977885,0.29034178,59586.0,59585.0,0.00352713]
[1617347978090,0.18566573,59586.0,59585.0,0.00352713]
[1617347978309,0.15534175,59586.0,59585.0,0.00352713]
[1617347978707,0.40834589,59586.0,59585.0,0.00352713]
[1617347979106,0.05163927,59586.0,59585.0,0.00352713]
[1617347979305,0.00163927,59586.0,59585.0,0.00352713]
[1617347979508,0.10534175,59586.0,59585.0,0.00352713]
[1617347979711,0.00163927,59586.0,59585.0,0.00352713]
[1617347979914,0.0029245,59590.0,59585.0,0.23352713]
[1617347980126,0.00292127,59592.0,59589.0,0.33442253]
[1617347980330,0.56393015,59597.0,59593.0,0.0048]
[1617347980520,0.00303724,59618.0,59596.0,0.0052]
[1617347980718,0.9095,59623.0,59617.0,0.13357654]
[1617347980954,0.0004,59627.0,59620.0,0.35516524]
[1617347981150,0.0004,59627.0,59621.0,0.88260972]
[1617347981348,0.0004,59627.0,59621.0,1.07825934]
[1617347981543,0.0004,59627.0,59621.0,2.43342458]
[1617347981742,0.0004,59627.0,59621.0,2.34845568]
[1617347981941,0.0004,59627.0,59621.0,2.99345568]
[1617347982142,0.0004,59627.0,59623.0,0.386708]
[1617347982346,0.0004,59627.0,59623.0,1.00979429]
[1617347982547,0.0004,59627.0,59626.0,1.18812177]
[1617347982741,0.0004,59627.0,59626.0,1.55191597]
[1617347982979,0.0004,59631.0,59626.0,1.62491597]
[1617347983174,0.0004,59631.0,59630.0,0.416708]
[1617347983369,0.0004,59631.0,59630.0,0.970658]
[1617347983569,0.0004,59631.0,59630.0,2.21610443]
[1617347983771,0.0004,59631.0,59630.0,2.12018513]
[1617347984170,0.0004,59636.0,59630.0,2.12018513]
[1617347984373,0.01805278,59639.0,59638.0,0.35118228]
[1617347984573,0.01805278,59639.0,59638.0,1.76789028]
[1617347984768,0.01805278,59639.0,59638.0,2.22458265]
[1617347984968,0.01805278,59639.0,59638.0,1.86941741]
[1617347985372,0.01805278,59639.0,59638.0,1.53941741]
[1617347985572,0.01805278,59639.0,59638.0,1.50941741]
[1617347985768,0.01805278,59639.0,59638.0,2.00593841]
[1617347985968,0.01805278,59639.0,59638.0,2.36110365]
[1617347987208,0.01805278,59639.0,59638.0,2.39110365]
[1617347987410,0.01805278,59639.0,59638.0,2.36110365]
[1617347987609,0.01805278,59639.0,59638.0,1.36110365]
[1617347988010,0.01805278,59639.0,59638.0,1.23992137]
[1617347988411,0.01805278,59639.0,59638.0,0.99492137]
[1617347988820,1.06805278,59639.0,59638.0,0.99492137]
[1617347989025,1.22175526,59639.0,59638.0,0.00152713]
[1617347989218,1.60846326,59639.0,59638.0,0.00152713]
[1617347989416,2.09846326,59639.0,59638.0,0.00152713]
[1617347990017,2.04846326,59639.0,59638.0,0.00152713]
[1617347990215,0.79846326,59639.0,59638.0,0.00152713]
[1617347990621,0.01805278,59639.0,59638.0,0.00152713]
[1617347990823,0.01867258,59639.0,59638.0,0.38823513]
[1617347991641,0.01867258,59639.0,59638.0,0.00152713]
[1617347992836,0.01867258,59639.0,59632.0,0.26201237]
[1617347993036,0.01867258,59639.0,59634.0,0.26201237]
[1617347993238,0.01867258,59639.0,59635.0,0.386708]
[1617347993437,0.01867258,59639.0,59636.0,0.26201237]
[1617347993638,0.01867258,59639.0,59637.0,0.386708]
[1617347993836,0.01867258,59639.0,59638.0,0.26201237]
[1617347994064,0.01867258,59639.0,59638.0,1.64944037]
[1617347994260,0.01867258,59639.0,59638.0,1.057428]
[1617347995462,0.01867258,59639.0,59638.0,0.67072]
[1617347995660,0.01867258,59639.0,59638.0,1.057428]
[1617347995859,0.01867258,59639.0,59638.0,1.212428]
[1617347997691,0.01867258,59639.0,59638.0,0.82572]
[1617347997895,1.22467258,59639.0,59638.0,0.82572]
[1617347998140,1.22467258,59639.0,59606.0,0.13123296]
[1617347998141,0.19315287,59636.0,59606.0,0.13123296]
[1617347998335,0.19315287,59636.0,59616.0,0.002]
[1617347998336,4.08154374,59617.0,59616.0,0.002]
[1617347998533,6.52577422,59617.0,59616.0,0.002]
[1617347998735,6.41123048,59617.0,59616.0,0.002]
[1617347998927,7.06577422,59617.0,59616.0,0.002]
[1617347999123,7.11577422,59617.0,59616.0,0.002]
[1617347999534,7.15577422,59617.0,59616.0,0.002]
[1617347999749,0.05,59616.0,59606.0,0.13123296]
[1617347999938,0.51273385,59614.0,59606.0,0.13323296]
[1617348000139,0.10370248,59612.0,59606.0,0.13323296]
[1617348000336,0.75125174,59611.0,59606.0,0.13323296]
[1617348000544,0.76824622,59610.0,59606.0,0.002]
[1617348000739,0.40370248,59610.0,59606.0,0.002]
[1617348001342,0.00303724,59616.0,59606.0,0.002]
[1617348001540,0.10370248,59609.0,59606.0,0.002]